fUSD/lending_fUSD_20240506
["ID","MTS","AMOUNT","RATE_DAILY","PERIOD"]
[326481806,1714989052031,-268.3,0.00024654,14]
[326481807,1714989052041,-268.3,0.00024661,14]
[326481808,1714989052050,-170.80859526,0.00024682,2]
[326481809,1714989052060,-151.7,0.00024728,2]
[326481810,1714989052069,-44625.307055,0.00024738,2]
[326481811,1714989052079,-172.526076,0.00024738,2]
[326481812,1714989052087,-172.526076,0.00024738,2]
[326481813,1714989052097,-192.511905,0.00024738,2]
[326481814,1714989052106,-3424.937796,0.00024738,2]
[326481815,1714989052115,-2065.233944,0.00024738,2]
[326481816,1714989052125,-345.893144,0.00024738,2]
[326481817,1714989052135,-3009.17905446,0.000248,2]
[326481818,1714989052144,-1800.0,0.0002493,2]
[326481819,1714989052153,-1300.0,0.0002493,2]
[326481820,1714989052162,-154.55899527,0.00024997,2]
[326481821,1714989052172,-2218.57256714,0.00025,2]
[326481822,1714989052181,-471.60362987,0.00025,2]
[326481823,1714989052190,-155.0,0.00025,2]
[326481824,1714989052200,-2609.00158437,0.00025,2]
[326481825,1714989052209,-155.0,0.00025,2]
[326481826,1714989052219,-1000.0,0.00025,4]
[326481827,1714989052228,-500.0,0.00025,2]
[326481828,1714989052237,-160.0,0.00025,2]
[326481829,1714989052247,-205.7,0.00025,6]
[326481830,1714989052256,-197.461042,0.00025,7]
[326481831,1714989052266,-151.0,0.00025,7]
[326481832,1714989052275,-4107.81145358,0.00025,2]
[326481833,1714989052285,-500.0,0.00025,2]
[326481834,1714989052294,-151.0,0.00025,7]
[326481835,1714989052304,-151.0,0.00025,7]
[326481836,1714989052317,-151.0,0.00025,7]
[326481837,1714989052328,-294.422506,0.00025,2]
[326481838,1714989052338,-150.0,0.00025,4]
[326481839,1714989052348,-335.55208326,0.00025008,7]
[326481840,1714989052357,-300.0,0.00025028,2]
[326481841,1714989052367,-44625.307055,0.00025047,2]
[326481842,1714989052378,-3424.937796,0.00025047,2]
[326481843,1714989052387,-2065.233944,0.00025047,2]
[326481844,1714989052397,-345.893144,0.00025047,2]
[326481845,1714989052406,-151.85369651,0.0002505,2]
[326481846,1714989052416,-201.0,0.000251,2]
[326481847,1714989052425,-206.0,0.000251,2]
[326481848,1714989052435,-164.28504994,0.00025133,2]
[326481849,1714989052445,-893.77980077,0.00025141,2]
[326481850,1714989052454,-202.71496836,0.00025141,2]
[326481851,1714989052465,-241.65804583,0.00025141,2]
[326481852,1714989052475,-508.75337789,0.00025141,2]
[326481853,1714989052484,-6686.36157866,0.00025175,2]
[326481854,1714989052493,-11494.43746993,0.00025192,2]
[326481855,1714989052503,-1113.3391709,0.00025197,2]
[326481856,1714989052512,-205.0,0.000253,2]
[326481857,1714989052522,-217.992805,0.00025356,7]
[326481858,1714989052532,-217.992805,0.00025356,7]
[326481859,1714989052542,-151.0,0.00025356,7]
[326481860,1714989052552,-172.526076,0.00025357,2]
[326481861,1714989052562,-44625.307055,0.00025357,2]
[326481862,1714989052571,-3424.937796,0.00025357,2]
[326481863,1714989052581,-2065.233944,0.00025357,2]
[326481864,1714989052590,-345.893144,0.00025357,2]
[326481865,1714989052600,-309.75,0.00025364,2]
[326481866,1714989052609,-690.13,0.000254,2]
[326481867,1714989052620,-1800.0,0.00025478,2]
[326481868,1714989052629,-1300.0,0.00025478,2]
[326481869,1714989052639,-151.7,0.0002549,2]
[326481870,1714989052648,-151.7,0.0002549,2]
[326481871,1714989052658,-330094.02751258,0.000255,30]
[326481872,1714989052676,-173.26212603,0.000255,2]
[326481873,1714989052686,-300.0,0.000255,2]
[326481874,1714989052696,-151.0,0.000255,7]
[326481875,1714989052706,-151.0,0.000255,7]
[326481876,1714989052716,-151.0,0.000255,7]
[326481877,1714989052726,-151.0,0.000255,7]
[326481878,1714989052735,-154.55899527,0.00025517,2]
[326481879,1714989052744,-300.0,0.00025549,2]
[326481880,1714989052755,-769.51,0.000256,2]
[326481881,1714989052764,-44625.307055,0.00025666,2]
[326481882,1714989052774,-3424.937796,0.00025666,2]
[326481883,1714989052784,-2065.233944,0.00025666,2]
[326481884,1714989052793,-345.893144,0.00025666,2]
[326481885,1714989052803,-217.992805,0.00025666,7]
[326481886,1714989052812,-217.992805,0.00025666,7]
[326481887,1714989052821,-151.0,0.00025666,7]
[326481888,1714989052832,-268.3,0.00025678,14]
[326481889,1714989052841,-403.18,0.00025696,2]
[326481890,1714989052850,-170.80859526,0.00025711,2]
[326481891,1714989052860,-157.84,0.00025723,2]
[326481892,1714989052869,-151.0,0.00025786,2]
[326481893,1714989052879,-340.90912983,0.000258,30]
[326481894,1714989052891,-201.0,0.0002585,2]
[326481895,1714989052900,-206.0,0.0002585,2]
[326481896,1714989052909,-212.0,0.000259,2]
[326481897,1714989052918,-152.0,0.00025943,3]
[326481898,1714989052927,-172.526076,0.00025975,2]
[326481899,1714989052938,-172.526076,0.00025975,2]
[326481900,1714989052947,-192.511905,0.00025975,2]
[326481901,1714989052956,-44625.307055,0.00025975,2]
[326481902,1714989052967,-3424.937796,0.00025975,2]
[326481903,1714989052976,-2065.233944,0.00025975,2]
[326481904,1714989052990,-345.893144,0.00025975,2]
[326481905,1714989053004,-151.7,0.0002599,2]
[326481906,1714989053013,-35124.83963803,0.00026,15]
[326481907,1714989053023,-205.0,0.00026,2]
[326481908,1714989053032,-1450.0,0.00026,3]
[326481909,1714989053041,-1800.0,0.00026026,2]
[326481910,1714989053051,-1300.0,0.00026026,2]
[326481911,1714989053060,-170.80859526,0.00026219,2]
[326481912,1714989053070,-302.0,0.00026219,4]
[326481913,1714989053082,-690.13,0.000264,2]
[326481914,1714989053091,-769.51,0.000264,2]
[326481915,1714989053101,-1300.0,0.00026574,2]
[326481916,1714989053110,-151.85369651,0.00026588,2]
[326481917,1714989053120,-1094.13,0.00026591,2]
[326481918,1714989053129,-201.0,0.000266,2]
[326481919,1714989053138,-206.0,0.000266,2]
[326481920,1714989053147,-11494.43746993,0.00026624,2]
[326481921,1714989053156,-154.55899527,0.00026625,2]
[326481922,1714989053166,-604.0,0.0002666,7]
[326481923,1714989053175,-205.0,0.000267,2]
[326481924,1714989053184,-212.0,0.0002674,2]
[326481925,1714989053193,-3000.0,0.000268,2]
[326481926,1714989053202,-177.51510097,0.00026816,2]
[326481927,1714989053211,-5350.0,0.000269,9]
[326481928,1714989053221,-6686.36157866,0.00026921,2]
[326481929,1714989053231,-1113.3391709,0.00026932,2]
[326481930,1714989053240,-154.55899527,0.00026933,2]
[326481931,1714989053250,-154.64601454,0.00026942,2]
[326481932,1714989053259,-2210.6305118,0.00026982,2]
[326481933,1714989053269,-434.5253925,0.00026982,2]
[326481934,1714989053278,-270.4734087,0.00026982,2]
[326481935,1714989053287,-406.0,0.00026996,2]
[326481936,1714989053296,-155.0,0.00027,4]
[326481937,1714989053305,-1741.0206567,0.00027,2]
[326481938,1714989053322,-763.55604664,0.00027,2]
[326481939,1714989053343,-1517.27890491,0.00027,2]
[326481940,1714989053353,-6518.14356566,0.00027,2]
[326481941,1714989053363,-1000.0,0.00027,4]
[326481942,1714989053372,-1002.0,0.00027,4]
[326481943,1714989053381,-7559.47384952,0.00027,2]
[326481944,1714989053390,-150.0,0.00027,2]
[326481945,1714989053399,-3000.0,0.00027,2]
[326481946,1714989053408,-433.47333938,0.00027,2]
[326481947,1714989053418,-433.47333938,0.00027,2]
[326481948,1714989053427,-433.47333938,0.00027,2]
[326481949,1714989053437,-433.47333938,0.00027,2]
[326481950,1714989053446,-433.47333938,0.00027,2]
[326481951,1714989053455,-433.47333938,0.00027,2]
[326481952,1714989053465,-433.47333938,0.00027,2]
[326481953,1714989053474,-433.47333938,0.00027,2]
[326481954,1714989053484,-433.47333938,0.00027,2]
[326481955,1714989053493,-433.47333938,0.00027,2]
[326481956,1714989053503,-433.47333938,0.00027,2]
[326481957,1714989053512,-433.47333938,0.00027,2]
[326481958,1714989053522,-433.47333938,0.00027,2]
[326481959,1714989053532,-433.47333938,0.00027,2]
[326481960,1714989053542,-433.47333938,0.00027,2]
[326481961,1714989053551,-433.47333938,0.00027,2]
[326481962,1714989053562,-433.47333938,0.00027,2]
[326481963,1714989053572,-433.47333938,0.00027,2]
[326481964,1714989053583,-433.47333938,0.00027,2]
[326481965,1714989053592,-433.47333938,0.00027,2]
[326481966,1714989053602,-433.47333938,0.00027,2]
[326481967,1714989053611,-433.47333938,0.00027,2]
[326481968,1714989053621,-433.47333938,0.00027,2]
[326481969,1714989053630,-433.47333938,0.00027,2]
[326481970,1714989053640,-433.47333938,0.00027,2]
[326481971,1714989053649,-433.47333938,0.00027,2]
[326481972,1714989053659,-433.47333938,0.00027,2]
[326481973,1714989053669,-433.47333938,0.00027,2]
[326481974,1714989053684,-433.47333938,0.00027,2]
[326481975,1714989053700,-433.47333938,0.00027,2]
[326481976,1714989053710,-433.47333938,0.00027,2]
[326481977,1714989053719,-433.47333938,0.00027,2]
[326481978,1714989053729,-433.47333938,0.00027,2]
[326481979,1714989053739,-433.47333938,0.00027,2]
[326481980,1714989053748,-433.47333938,0.00027,2]
[326481981,1714989053758,-433.47333938,0.00027,2]
[326481982,1714989053768,-433.47333938,0.00027,2]
[326481983,1714989053777,-433.47333938,0.00027,2]
[326481984,1714989053786,-433.47333938,0.00027,2]
[326481985,1714989053796,-433.47333938,0.00027,2]
[326481986,1714989053805,-433.47333938,0.00027,2]
[326481987,1714989053814,-433.47333938,0.00027,2]
[326481988,1714989053823,-433.47333938,0.00027,2]
[326481989,1714989053833,-433.47333938,0.00027,2]
[326481990,1714989053842,-433.47333938,0.00027,2]
[326481991,1714989053852,-433.47333938,0.00027,2]
[326481992,1714989053862,-433.47333938,0.00027,2]
[326481993,1714989053872,-433.47333938,0.00027,2]
[326481994,1714989053881,-433.47333938,0.00027,2]
[326481995,1714989053894,-433.47333938,0.00027,2]
[326481996,1714989053904,-1300.0,0.00027122,2]
[326481997,1714989053913,-1800.0,0.00027122,2]
[326481998,1714989053922,-1208.0,0.00027335,30]
[326481999,1714989053933,-201.0,0.0002735,2]
[326482000,1714989053942,-206.0,0.0002735,2]
[326482001,1714989053952,-151.7,0.00027359,2]
[326482002,1714989053962,-151.7,0.00027359,2]
[326482003,1714989053973,-449542.917491,0.00027369,7]
[326482004,1714989053983,-151.0,0.00027369,7]
[326482005,1714989053992,-151.0,0.00027369,7]
[326482006,1714989054002,-151.0,0.00027369,7]
[326482007,1714989054032,-151.0,0.00027369,7]
[326482008,1714989054041,-217.992805,0.00027369,7]
[326482009,1714989054050,-217.992805,0.00027369,7]
[326482010,1714989054060,-151.7,0.00027387,2]
[326482011,1714989054070,-10000.0,0.00027397,5]
[326482012,1714989054080,-10000.0,0.00027397,5]
[326482013,1714989054088,-10000.0,0.00027397,5]
[326482014,1714989054098,-10000.0,0.00027397,5]
[326482015,1714989054107,-10000.0,0.00027397,5]
[326482016,1714989054325,-10000.0,0.00027397,5]
[326482017,1714989054335,-10000.0,0.00027397,5]
[326482018,1714989054345,-10000.0,0.00027397,5]
[326482019,1714989054354,-10000.0,0.00027397,5]
[326482020,1714989054364,-10000.0,0.00027397,5]
[326482021,1714989054373,-10000.0,0.00027397,5]
[326482022,1714989054383,-10000.0,0.00027397,5]
[326482023,1714989054395,-10000.0,0.00027397,5]
[326482024,1714989054404,-10000.0,0.00027397,5]
[326482025,1714989054414,-10000.0,0.00027397,5]
[326482026,1714989054423,-10000.0,0.00027397,5]
[326482027,1714989054432,-10000.0,0.00027397,5]
[326482028,1714989054441,-10000.0,0.00027397,5]
[326482029,1714989054451,-10000.0,0.00027397,5]
[326482030,1714989054460,-10000.0,0.00027397,5]
[326482031,1714989054469,-4638.0736184,0.00027397,5]
[326482032,1714989054478,-300.0,0.00027397,2]
[326482033,1714989054488,-500.0,0.00027397,2]
[326482034,1714989054497,-500.0,0.00027397,2]
[326482035,1714989054507,-500.0,0.00027397,2]
[326482036,1714989054516,-500.0,0.00027397,2]
[326482037,1714989054526,-500.0,0.00027397,2]
[326482038,1714989054535,-500.0,0.00027397,2]
[326482039,1714989054544,-500.0,0.00027397,2]
[326482040,1714989054554,-500.0,0.00027397,2]
[326482041,1714989054563,-500.0,0.00027397,2]
[326482042,1714989054572,-500.0,0.00027397,2]
[326482043,1714989054584,-500.0,0.00027397,2]
[326482044,1714989054594,-526.13,0.00027397,2]
[326482045,1714989054604,-500.0,0.00027397,2]
[326482046,1714989054613,-500.0,0.00027397,2]
[326482047,1714989054624,-500.0,0.00027397,2]
[326482048,1714989054633,-500.0,0.00027397,2]
[326482049,1714989054642,-500.0,0.00027397,2]
[326482050,1714989054652,-500.0,0.00027397,2]
[326482051,1714989054661,-500.0,0.00027397,2]
[326482052,1714989054671,-500.0,0.00027397,2]
[326482053,1714989054680,-500.0,0.00027397,2]
[326482054,1714989054690,-500.0,0.00027397,2]
[326482055,1714989054705,-500.0,0.00027397,2]
[326482056,1714989054720,-500.0,0.00027397,2]
[326482057,1714989054730,-322.51055507,0.00027397,2]
[326482058,1714989054740,-151.26,0.00027397,2]
[326482059,1714989054750,-280.31,0.00027397,10]
[326482060,1714989054759,-233.59,0.00027397,10]
[326482061,1714989054769,-205.0,0.000274,2]
[326482062,1714989054779,-1000.0,0.000274,2]
[326482063,1714989054789,-170.80859526,0.00027444,2]
[326482064,1714989054798,-164.28504994,0.00027458,2]
[326482065,1714989054807,-4000.0,0.00027463,7]
[326482066,1714989054817,-157.050611,0.00027498,8]
[326482067,1714989054827,-18163.94781153,0.00027499,2]
[326482068,1714989054837,-212.0,0.0002758,2]
[326482069,1714989054847,-456.82541101,0.000276,10]
[326482070,1714989054856,-375.85,0.000276,2]
[326482071,1714989054865,-2842.2392294,0.00027652,2]
[326482072,1714989054874,-3473.8479471,0.00027652,2]
[326482073,1714989054884,-558.6755047,0.00027652,2]
[326482074,1714989054898,-682.8256168,0.00027652,2]
[326482075,1714989054908,-347.7515255,0.00027652,2]
[326482076,1714989054917,-425.0296423,0.00027652,2]
[326482077,1714989054927,-155.0,0.00027671,2]
[326482078,1714989054938,-502.59637714,0.00027671,4]
[326482079,1714989054948,-502.70717063,0.00027671,4]
[326482080,1714989054958,-551.02623867,0.00027671,4]
[326482081,1714989054972,-503.88368752,0.00027671,4]
[326482082,1714989054983,-503.05309372,0.00027671,4]
[326482083,1714989054992,-503.80838063,0.00027671,4]
[326482084,1714989055002,-500.0,0.00027671,4]
[326482085,1714989055020,-508.98402901,0.00027671,4]
[326482086,1714989055031,-500.0,0.00027671,4]
[326482087,1714989055042,-500.0,0.00027671,4]
[326482088,1714989055051,-503.44851546,0.00027671,4]
[326482089,1714989055062,-502.43730304,0.00027671,4]
[326482090,1714989055073,-503.75753944,0.00027671,4]
[326482091,1714989055084,-502.48917273,0.00027671,4]
[326482092,1714989055094,-533.49031034,0.00027671,4]
[326482093,1714989055104,-505.39084771,0.00027671,4]
[326482094,1714989055113,-500.0,0.00027671,4]
[326482095,1714989055123,-502.57735482,0.00027671,4]
[326482096,1714989055133,-505.56398481,0.00027671,4]
[326482097,1714989055142,-500.0,0.00027671,4]
[326482098,1714989055152,-500.0,0.00027671,4]
[326482099,1714989055163,-503.51267035,0.00027671,4]
[326482100,1714989055174,-503.90019903,0.00027671,4]
[326482101,1714989055183,-505.35524321,0.00027671,4]
[326482102,1714989055192,-505.63986062,0.00027671,4]
[326482103,1714989055203,-500.0,0.00027671,4]
[326482104,1714989055212,-503.95317302,0.00027671,4]
[326482105,1714989055222,-503.42030035,0.00027671,4]
[326482106,1714989055231,-502.45577867,0.00027671,4]
[326482107,1714989055240,-500.0,0.00027671,4]
[326482108,1714989055250,-505.21573684,0.00027671,4]
[326482109,1714989055259,-504.56460279,0.00027671,4]
[326482110,1714989055269,-506.12421031,0.00027671,4]
[326482111,1714989055278,-503.9958849,0.00027671,4]
[326482112,1714989055288,-500.0,0.00027671,4]
[326482113,1714989055297,-505.89758325,0.00027671,4]
[326482114,1714989055307,-500.0,0.00027671,4]
[326482115,1714989055316,-506.70123889,0.00027671,4]
[326482116,1714989055325,-503.53395907,0.00027671,4]
[326482117,1714989055336,-506.54885808,0.00027671,4]
[326482118,1714989055345,-500.0,0.00027671,4]
[326482119,1714989055355,-503.59346439,0.00027671,4]
[326482120,1714989055364,-502.6914021,0.00027671,4]
[326482121,1714989055374,-174.3131924,0.00027671,4]
[326482122,1714989055383,-506.22326827,0.00027671,4]
[326482123,1714989055397,-503.66723255,0.00027671,4]
[326482124,1714989055418,-502.00395352,0.00027671,4]
[326482125,1714989055432,-499.34540298,0.00027671,4]
[326482126,1714989055442,-240.3,0.00027671,4]
[326482127,1714989055452,-200.0,0.00027671,4]
[326482128,1714989055461,-500.03281944,0.00027671,4]
[326482129,1714989055471,-500.0,0.00027671,4]
[326482130,1714989055481,-500.0,0.00027671,4]
[326482131,1714989055490,-800.16,0.00027671,4]
[326482132,1714989055500,-1071.19,0.00027671,4]
[326482133,1714989055510,-503.99635501,0.00027671,4]
[326482134,1714989055520,-2128.9,0.00027671,4]
[326482135,1714989055530,-644.94,0.00027671,4]
[326482136,1714989055539,-603.87,0.00027671,4]
[326482137,1714989055549,-500.0,0.00027671,4]
[326482138,1714989055558,-555.16,0.00027671,4]
[326482139,1714989055568,-500.0,0.00027671,4]
[326482140,1714989055579,-504.16901941,0.00027671,4]
[326482141,1714989055588,-1097.45,0.00027671,4]
[326482142,1714989055599,-536.84253551,0.00027671,4]
[326482143,1714989055609,-698.26,0.00027671,4]
[326482144,1714989055619,-2371.57,0.00027671,4]
[326482145,1714989055629,-1929.51,0.00027671,4]
[326482146,1714989055639,-503.44609527,0.00027671,4]
[326482147,1714989055648,-1092.97,0.00027671,4]
[326482148,1714989055658,-502.83311679,0.00027671,4]
[326482149,1714989055668,-529.05295854,0.00027671,4]
[326482150,1714989055678,-500.0,0.00027671,4]
[326482151,1714989055688,-504.9902516,0.00027671,4]
[326482152,1714989055698,-500.0,0.00027671,4]
[326482153,1714989055708,-1049.56,0.00027671,4]
[326482154,1714989055717,-500.0,0.00027671,4]
[326482155,1714989055727,-506.86120139,0.00027671,4]
[326482156,1714989055736,-500.0,0.00027671,4]
[326482157,1714989055745,-500.0,0.00027671,4]
[326482158,1714989055754,-500.0,0.00027671,4]
[326482159,1714989055764,-500.0,0.00027671,4]
[326482160,1714989055773,-501.40811332,0.00027671,4]
[326482161,1714989055782,-500.0,0.00027671,4]
[326482162,1714989055791,-500.0,0.00027671,4]
[326482163,1714989055800,-504.23517852,0.00027671,4]
[326482164,1714989055808,-505.5571165,0.00027671,4]
[326482165,1714989055818,-749.84,0.00027671,4]
[326482166,1714989055827,-632.65,0.00027671,4]
[326482167,1714989055836,-546.02,0.00027671,4]
[326482168,1714989055845,-500.0,0.00027671,4]
[326482169,1714989055855,-503.47183894,0.00027671,4]
[326482170,1714989055864,-505.6563939,0.00027671,4]
[326482171,1714989055873,-500.0,0.00027671,4]
[326482172,1714989055883,-1250.93,0.00027671,4]
[326482173,1714989055897,-500.0,0.00027671,4]
[326482174,1714989055906,-506.8405196,0.00027671,4]
[326482175,1714989055915,-557.18,0.00027671,4]
[326482176,1714989055924,-500.0,0.00027671,4]
[326482177,1714989055934,-500.0,0.00027671,4]
[326482178,1714989055944,-500.0,0.00027671,4]
[326482179,1714989055957,-515.19741678,0.00027671,4]
[326482180,1714989055975,-507.51414606,0.00027671,4]
[326482181,1714989055992,-506.78202713,0.00027671,4]
[326482182,1714989056007,-1152.74,0.00027671,4]
[326482183,1714989056023,-504.77101597,0.00027671,4]
[326482184,1714989056040,-1017.07,0.00027671,4]
[326482185,1714989056060,-641.09,0.00027671,4]
[326482186,1714989056075,-506.85876142,0.00027671,4]
[326482187,1714989056092,-574.35,0.00027671,4]
[326482188,1714989056108,-501.75042957,0.00027671,4]
[326482189,1714989056120,-1109.92,0.00027671,4]
[326482190,1714989056135,-1115.3,0.00027671,4]
[326482191,1714989056153,-782.1,0.00027671,4]
[326482192,1714989056169,-1458.21,0.00027671,4]
[326482193,1714989056186,-500.0,0.00027671,4]
[326482194,1714989056198,-500.0,0.00027671,4]
[326482195,1714989056210,-513.69,0.00027671,4]
[326482196,1714989056226,-151.0,0.00027671,7]
[326482197,1714989056241,-500.0,0.00027671,4]
[326482198,1714989056255,-1083.03,0.00027671,4]
[326482199,1714989056272,-151.0,0.00027671,7]
[326482200,1714989056285,-245.0,0.00027671,7]
[326482201,1714989056299,-500.0,0.00027671,4]
[326482202,1714989056312,-500.0,0.00027671,4]
[326482203,1714989056326,-1517.11,0.00027671,4]
[326482204,1714989056340,-500.0,0.00027671,4]
[326482205,1714989056353,-1099.41,0.00027671,4]
[326482206,1714989056366,-740.72,0.00027671,4]
[326482207,1714989056379,-1207.07,0.00027671,4]
[326482208,1714989056397,-506.86889882,0.00027671,4]
[326482209,1714989056415,-1981.58,0.00027671,4]
[326482210,1714989056428,-500.0,0.00027671,4]
[326482211,1714989056442,-508.37690098,0.00027671,4]
[326482212,1714989056454,-500.0,0.00027671,4]
[326482213,1714989056469,-528.13845263,0.00027671,4]
[326482214,1714989056482,-510.16381843,0.00027671,4]
[326482215,1714989056495,-1618.89,0.00027671,4]
[326482216,1714989056508,-500.0,0.00027671,4]
[326482217,1714989056522,-504.6384458,0.00027671,4]
[326482218,1714989056536,-500.0,0.00027671,4]
[326482219,1714989056549,-500.0,0.00027671,4]
[326482220,1714989056562,-507.55860445,0.00027671,4]
[326482221,1714989056575,-500.0,0.00027671,4]
[326482222,1714989056588,-504.96051342,0.00027671,4]
[326482223,1714989056601,-502.35629533,0.00027671,4]
[326482224,1714989056614,-1306.83,0.00027671,4]
[326482225,1714989056628,-500.0,0.00027671,4]
[326482226,1714989056643,-673.68,0.00027671,4]
[326482227,1714989056656,-503.27237803,0.00027671,4]
[326482228,1714989056670,-507.9318744,0.00027671,4]
[326482229,1714989056684,-1315.42,0.00027671,4]
[326482230,1714989056697,-914.79,0.00027671,4]
[326482231,1714989056711,-507.56356298,0.00027671,4]
[326482232,1714989056725,-500.0,0.00027671,4]
[326482233,1714989056738,-500.0,0.00027671,4]
[326482234,1714989056752,-155.45382295,0.00027671,4]
[326482235,1714989056765,-504.71914159,0.00027671,4]
[326482236,1714989056779,-500.0,0.00027671,4]
[326482237,1714989056793,-498.36051769,0.00027671,4]
[326482238,1714989056806,-504.37740928,0.00027671,4]
[326482239,1714989056819,-500.0,0.00027671,4]
[326482240,1714989056834,-500.0,0.00027671,4]
[326482241,1714989056846,-500.0,0.00027671,4]
[326482242,1714989056860,-500.0,0.00027671,4]
[326482243,1714989056873,-505.54711933,0.00027671,4]
[326482244,1714989056885,-500.0,0.00027671,4]
[326482245,1714989056902,-500.0,0.00027671,4]
[326482246,1714989056915,-1021.05,0.00027671,4]
[326482247,1714989056927,-504.0711854,0.00027671,4]
[326482248,1714989056941,-508.20600247,0.00027671,4]
[326482249,1714989056973,-502.10053662,0.00027671,4]
[326482250,1714989057008,-500.0,0.00027671,4]
[326482251,1714989057022,-500.0,0.00027671,4]
[326482252,1714989057035,-822.2,0.00027671,4]
[326482253,1714989057048,-500.0,0.00027671,4]
[326482254,1714989057061,-300.0,0.00027671,4]
[326482255,1714989057074,-500.0,0.00027671,2]
[326482256,1714989057087,-1812.57,0.00027671,4]
[326482257,1714989057100,-503.00524866,0.00027671,4]
[326482258,1714989057114,-503.60765784,0.00027671,4]
[326482259,1714989057127,-500.0,0.00027671,4]
[326482260,1714989057141,-544.05,0.00027671,4]
[326482261,1714989057154,-501.81300489,0.00027671,4]
[326482262,1714989057167,-500.0,0.00027671,4]
[326482264,1714989057180,-364.04562105,0.00027671,4]
[326482265,1714989057193,-811.15,0.00027671,4]
[326482266,1714989057206,-500.0,0.00027671,4]
[326482267,1714989057218,-500.0,0.00027671,4]
[326482268,1714989057232,-682.22,0.00027671,4]
[326482269,1714989057244,-505.12102484,0.00027671,4]
[326482270,1714989057257,-500.0,0.00027671,4]
[326482271,1714989057270,-500.0,0.00027671,4]
[326482272,1714989057283,-500.0,0.00027671,4]
[326482273,1714989057297,-500.0,0.00027671,4]
[326482274,1714989057310,-1529.06,0.00027671,4]
[326482275,1714989057324,-503.43605335,0.00027671,4]
[326482276,1714989057338,-500.0,0.00027671,4]
[326482277,1714989057350,-500.0,0.00027671,4]
[326482278,1714989057363,-500.0,0.00027671,4]
[326482279,1714989057376,-502.89018203,0.00027671,4]
[326482280,1714989057390,-504.95395387,0.00027671,4]
[326482281,1714989057403,-856.15,0.00027671,4]
[326482282,1714989057416,-660.76,0.00027671,4]
[326482283,1714989057429,-500.0,0.00027671,4]
[326482284,1714989057443,-500.0,0.00027671,4]
[326482285,1714989057455,-500.0,0.00027671,4]
[326482286,1714989057469,-1007.78375488,0.00027671,4]
[326482287,1714989057482,-999.62,0.00027671,4]
[326482288,1714989057496,-516.04327507,0.00027671,4]
[326482289,1714989057509,-500.0,0.00027671,4]
[326482290,1714989057522,-502.5208995,0.00027671,4]
[326482291,1714989057535,-588.03,0.00027671,4]
[326482292,1714989057548,-500.0,0.00027671,4]
[326482293,1714989057561,-500.0,0.00027671,4]
[326482294,1714989057575,-500.0,0.00027671,4]
[326482295,1714989057589,-714.32,0.00027671,4]
[326482296,1714989057601,-407.86882433,0.00027671,4]
[326482297,1714989057614,-500.0,0.00027671,4]
[326482298,1714989057629,-500.0,0.00027671,4]
[326482299,1714989057642,-505.03042093,0.00027671,4]
[326482300,1714989057655,-504.40658715,0.00027671,4]
[326482301,1714989057668,-500.0,0.00027671,4]
[326482302,1714989057681,-506.36009925,0.00027671,4]
[326482303,1714989057694,-503.62166563,0.00027671,4]
[326482304,1714989057707,-914.37,0.00027671,4]
[326482305,1714989057720,-820.0,0.00027671,4]
[326482306,1714989057732,-544.89,0.00027671,4]